Cogmind - Beta 14 @@@ ROGUE MODE // 2024.08.10 @ 12:18:25 Player: lsend Result: Destroyed by VG-H2F(R) with Subdweller Beam Cannon Performance ------------- Evolutions (0) 0 Regions Visited (2) 400 Robots Destroyed (1) 5 Value Destroyed (34) 34 Prototype IDs (0) 0 Alien Tech Used (0) 0 Bonus (0) 0 TOTAL SCORE: 439 Bonus ------- None Cogmind --------- Core Integrity 0/250 Matter 300/300 Energy 99/100 System Corruption 3% Temperature Cool (9) Movement Core (50) Location -10/Subcaves Parts ------- > --- POWER (1) -------- (None) > --- PROPULSION (2) --- (None) > --- UTILITY (2) ------ (None) > --- WEAPON (2) ------- (None) > --- INVENTORY (5) ---- Small Storage Unit Scrap Shield Peak State ------------ > --- POWER ------------ (None) > --- PROPULSION ------- Light Treads Light Treads > --- UTILITY ---------- Scrap Shield > --- WEAPON ----------- (None) > --- INVENTORY -------- Small Storage Unit [Rating: 6] Favorites ----------- Power None Propulsion Light Treads Treads Light Treads Utility Scrap Shield Protection Scrap Shield Weapon Subdweller Beam Cannon Energy Cannon Subdweller Beam Cannon Build | -11 -10 -10 ------- Run | Yrd Mat Sub Slots Evolved . | . . . Power . | . . . Propulsion . | . . . Utility . | . . . Weapon . | . . . Parts Attached 4 | 2 . 2 Power . | . . . Engine . | . . . Core . | . . . Reactor . | . . . Propulsion 2 | 2 . . Treads 2 | 2 . . Leg . | . . . Wheel . | . . . Hover . | . . . Flight . | . . . Utility 1 | . . 1 Device . | . . . Storage . | . . . Processor . | . . . Hackware . | . . . Protection 1 | . . 1 Artifact . | . . . Weapon 1 | . . 1 Energy Gun . | . . . Energy Cannon 1 | . . 1 Ballistic Gun . | . . . Ballistic Cannon . | . . . Launcher . | . . . Special Weapon . | . . . Impact Weapon . | . . . Slashing Weapon . | . . . Piercing Weapon . | . . . Special Melee Weapon . | . . . Unidentified Prototypes . | . . . Parts Lost 2 | . . 2 Power . | . . . Propulsion 2 | . . 2 Utility . | . . . Weapon . | . . . Highest Loss Streak 1 | . . 1 To Critical Strikes . | . . . Average Slot Usage (%) 24 | . 28 17 Treads 24 | . 28 17 Peak Build Rating 6 | 2 2 6 Average Rating 1 | 1 2 1 On Entrance 1 | . 2 2 Naked Turns 14 | . . 14 Heaviest Build . | . . . Greatest Support 40 | 3 40 3 Greatest Overweight (x) . | . . . Average Overweight (x) . | . . . Largest Inventory Capacity 5 | 5 5 5 Average Capacity 5 | 5 5 5 Most Carried 3 | 1 1 3 Average Carried 1 | . 1 2 Final Capacity 5 | 5 5 5 Final Carried 3 | 1 1 3 Class Distribution -------------------- 100% | Mutant Dominant Class ---------------- Mutant | -10/Materials Mutant | -10/Subcaves Resources | -11 -10 -10 ----------- Run | Yrd Mat Sub Matter Collected 230 | 215 . 15 Remotely . | . . . Salvage Created . | . . . Parts . | . . . Haulers Intercepted . | . . . Recyclers Shooed . | . . . Parts Field Recycled . | . . . Retrieved Matter . | . . . Parts Self-Destructed 14 | . . 14 Prevented . | . . . Kills | -11 -10 -10 ------- Run | Yrd Mat Sub Combat Hostiles Destroyed 1 | . 1 . Melee 1 | . 1 . Classes Destroyed 1 | . 1 . Grunt 1 | . 1 . Best Kill Streak 1 | . 1 . Combat Bots Only 1 | . 1 . Max Kills in Single Turn 1 | . 1 . Gunslinging . | . . . Exploded . | . . . Melee 1 | . 1 . Uniques/NPCs Destroyed . | . . . Combat | -11 -10 -10 -------- Run | Yrd Mat Sub Hostile Shots Fired 63 | . 20 43 Missed 28 | . 7 21 Damage Taken 560 | . 149 411 Core 268 | . 46 222 Absorbed by Shields . | . . . Core Remaining (%) 100 | 100 . . Volleys Fired . | . . . Largest . | . . . Hottest . | . . . Shots Fired . | . . . Gun . | . . . Cannon . | . . . Launcher . | . . . Special . | . . . Kinetic . | . . . Thermal . | . . . Explosive . | . . . Electromagnetic . | . . . Robot Hit Streak . | . . . Robot Miss Streak . | . . . Penetration Max . | . . . Secondary Targets . | . . . Shots Hit Robots . | . . . Core Hits 1 | . 1 . Critical Kills . | . . . Critical Parts Destroyed . | . . . Critical Strikes . | . . . Melee Attacks . | . . . Impact . | . . . Slashing . | . . . Piercing . | . . . Sneak Attacks . | . . . Combat Hostiles . | . . . Follow-up Attacks . | . . . Damage Inflicted 49 | . 7 42 Guns . | . . . Cannons . | . . . Explosions . | . . . Melee . | . . . Ramming 49 | . 7 42 Kinetic . | . . . Thermal . | . . . Explosive . | . . . Electromagnetic . | . . . Impact . | . . . Slashing . | . . . Piercing . | . . . Highest Corruption 3 | . . 3 Average Corruption 2 | . . 2 Corruption Purged . | . . . Corruption Blocked . | . . . Overload Shots . | . . . Overflow Damage . | . . . Projectiles . | . . . Explosions . | . . . Melee . | . . . Knockbacks . | . . . Impact . | . . . Kinetic . | . . . Secondary . | . . . Self-Inflicted Damage 42 | . . 42 Shots . | . . . Rammed 13 | . 13 . Targets Rammed 14 | . 14 . Kicked . | . . . Crushed 1 | . 1 . Highest Temperature . | . . . Average Temperature . | . . . Received Heat Transfer 150 | . 78 72 Siege Activations . | . . . Robots Corrupted . | . . . Combat Hostiles . | . . . Parts Fried . | . . . Impact Corruptions . | . . . Robots Melted . | . . . Combat Hostiles . | . . . Parts Melted . | . . . Heat Transferred . | . . . Parts Sabotaged . | . . . Parts Stolen . | . . . Parts Stripped . | . . . Power Chain Reactions . | . . . Alert | -11 -10 -10 ------- Run | Yrd Mat Sub Peak Influence 30 | . 30 . Initial . | . . . Average 12 | . 12 . Maximum Alert Level . | . . . Low Security (%) 100 | 100 100 . Level 1 . | . . . Level 2 . | . . . Level 3 . | . . . Level 4 . | . . . Level 5 . | . . . High Security . | . . . Max Security . | . . . Squads Dispatched 1 | . 1 . Investigation 1 | . 1 . Extermination . | . . . Reinforcement . | . . . Assault . | . . . Garrison . | . . . Intercept . | . . . Searches Triggered . | . . . Construction Impeded . | . . . Haulers Reinforced . | . . . Active Scanning Responses . | . . . Cargo Convoy Interrupts . | . . . Stealth | -11 -10 -10 --------- Run | Yrd Mat Sub Distress Signals . | . . . Communications Jammed . | . . . Distress Signals . | . . . Times Spotted 16 | . 1 15 Peak Tracking Total 5 | . 1 5 Tactical Retreats 4 | . . 4 Traps | -11 -10 -10 ------- Run | Yrd Mat Sub Traps Triggered 1 | . 1 . Indirectly . | . . . Trap Hack Attempts . | . . . Triggered . | . . . Disarmed . | . . . Reprogrammed . | . . . Reused . | . . . Traps Extracted . | . . . Installed . | . . . Triggered 1 | . . 1 Machines | -11 -10 -10 ---------- Run | Yrd Mat Sub Machines Disabled . | . . . Max in Single Turn . | . . . Machines Repaired . | . . . Machines Dismantled . | . . . Machines Sabotaged . | . . . Overloaded Fab Kills . | . . . Hacking | -11 -10 -10 --------- Run | Yrd Mat Sub Machines Accessed 1 | . . 1 Terminals . | . . . Fabricators . | . . . Repair Stations . | . . . Recycling Units . | . . . Scanalyzers . | . . . Garrison Access . | . . . Total Hacks 4 | . . 4 Successful 4 | . . 4 Failed . | . . . Catastrophic . | . . . Database Lockouts . | . . . Manual . | . . . Terminals . | . . . Fabricators . | . . . Repair Stations . | . . . Recycling Units . | . . . Scanalyzers . | . . . Garrison Access . | . . . Terminal Hacks 4 | . . 4 Record 4 | . . 4 Fabricator Hacks . | . . . Repair Station Hacks . | . . . Recycling Unit Hacks . | . . . Scanalyzer . | . . . Garrison Access Hacks . | . . . Unauthorized Hacks . | . . . Terminals . | . . . Fabricators . | . . . Repair Stations . | . . . Recycling Units . | . . . Scanalyzers . | . . . Garrison Access . | . . . Data Cores Recovered . | . . . Used . | . . . Hacking Detections . | . . . Full Trace Events . | . . . Feedback Events . | . . . Feedback Blocked . | . . . Robot Schematics Acquired . | . . . Robots Built . | . . . Authchips . | . . . Time . | . . . Total Robot Build Rating . | . . . Part Schematics Acquired . | . . . Parts Built . | . . . Authchips . | . . . Time . | . . . Total Part Build Rating . | . . . Parts Repaired . | . . . Time . | . . . Parts Recycled . | . . . Recycled Matter . | . . . Retrieved Matter . | . . . Retrieved Components . | . . . Parts Scanalyzed . | . . . Part Schematics Acquired . | . . . Parts Damaged . | . . . Bothacking | -11 -10 -10 ------------ Run | Yrd Mat Sub Used RIF Installer . | . . . Robots Hacked . | . . . Non-combat . | . . . Combat . | . . . Robot Hacks Applied . | . . . Relay Couplers Released . | . . . Fabnet Peak Effective % . | . . . Robots Rewired . | . . . Allies Hacked . | . . . Hacks Repelled . | . . . Allies | -11 -10 -10 -------- Run | Yrd Mat Sub Total Allies . | . . . Largest Group . | . . . Highest-Rated Group . | . . . Highest-Rated Ally . | . . . Total Orders . | . . . Ally Attacks . | . . . Total Damage . | . . . Kills . | . . . Allies Corrupted . | . . . Allies Melted . | . . . Intel | -11 -10 -10 ------- Run | Yrd Mat Sub Robot Analysis Total . | . . . Derelict Logs Recovered 1 | . . 1 Drone Launches . | . . . Drone Recoveries . | . . . Exploration | -11 -10 -10 ------------- Run | Yrd Mat Sub Turns Passed 889 | 20 597 272 Spaces Moved 613 | 32 58 523 Core 609 | 32 54 523 Treads 4 | . 4 . Legs . | . . . Wheels . | . . . Hover . | . . . Flight . | . . . Fastest Speed 50 | 50 50 50 Average Speed 50 | 50 57 50 Slowest Speed 160 | 50 160 50 Overloaded Moves . | . . . Propulsion Burnouts . | . . . Robots Hopped . | . . . Cave-ins Triggered . | . . . Exploration Rate (%) 17 | 3 13 35 Regions Visited 2 Branch Regions 1 Pre-discovered Areas 1 | . . 1 Known Exits Taken . | . . . Unknown Exits Taken 2 | 1 1 . Scrap Searched . | . . . Spaces Dug . | . . . Terrain Destroyed . | . . . Melee . | . . . Projectile . | . . . AOE . | . . . Terrain Rammed 6 | . . 6 Walls Destroyed . | . . . Machines Disabled . | . . . Actions | -11 -10 -10 --------- Run | Yrd Mat Sub Total 1179 | 34 612 533 Wait 541 | . 541 . Move 611 | 31 57 523 Hop . | . . . Pick Up 1 | 1 . . Fast Attach 4 | 2 . 2 Attach . | . . . Detach 1 | . . 1 Swap . | . . . Drop 1 | . . 1 Fire . | . . . Melee . | . . . Ram 6 | . . 6 Kick . | . . . Crush 14 | . 14 . Escape Stasis . | . . . Rewire . | . . . Trap . | . . . Miscellaneous . | . . . Route ------- -11/Scrapyard -10/Materials -10/Subcaves (discovered 1 exit: Rec) History --------- Turn | Location | Event 2 | -11/Scrapyard | Met Revision 17 8 | -11/Scrapyard | Discovered new exit (range 15) 21 | -11/Scrapyard | Entered Materials 315 | -10/Materials | Build established: Mutant 593 | -10/Materials | Discovered new exit (range 5) 618 | -10/Materials | Entered Subcaves 689 | -10/Subcaves | Learned location of Zion (-7) 714 | -10/Subcaves | Visited Clippyterm 716 | -10/Subcaves | Identified exit to Recycling 716 | -10/Subcaves | Learned Factory garrison access intel 744 | -10/Subcaves | Ambushed by swarm of Subdwellers 766 | -10/Subcaves | Shifting Twisted Machinery released Sub. Beam Cannon 768 | -10/Subcaves | Shifting Twisted Machinery released Sub. Laser 821 | -10/Subcaves | Core integrity fell below 50% 877 | -10/Subcaves | Core integrity fell below 20% 890 | -10/Subcaves | Destroyed by VG-H2F(R) with Subdweller Beam Cannon Last Messages --------------- D7-WZV(R) comes tumbling into view. 00746_ Q5-3SN(R) emerges from the Twisted Machinery. Sub. Beam Cannon falls loose from the Twisted Machinery. Sub. Laser falls loose from the Twisted Machinery. 00770_ Acquired Sub. Beam Cannon. 00771_ Dropped Sub. Beam Cannon. 00806_ Slammed into Wall. 00806_ Destabilizing: Core damaged (-2). 00807_ Slammed into Wall. 00807_ Destabilizing: Core damaged (-10). 00807_ Lgt. Treads broken. 00807_ Destabilizing: Short circuit. 00808_ Slammed into Wall. 00809_ Destabilizing: System corrupted (+2). 00810_ Slammed into Wall. 00810_ Destabilizing: System corrupted (+1). 00811_ Slammed into Wall. 00811_ Destabilizing: Core damaged (-7). 00876_ Broken Lgt. Treads destroyed. 00884_ Acquired 5 matter. Map ----- +----------------------------------------------------+ | ?????????????????????????????????????????????????? | | ?????????????????????????????????????????????????? | | ?????????????????????????????????????????????????? | | ?????????????????????????????????????????????????? | | ?????????????????????????????????????????????????? | | ?????????????????????????????????##??????????????? | | ?????????????????????????????????# ?????????????? | | ?????????????????????????????????? ?????????????? | | ?????????????????????????????????? ???###???????? | | ???????????????????????????####??? ??? ##??????? | | ??????????????????????????## ##?? ??? ##?????? | | ?????????????????????????## ?? ### #?????? | | ?????????????????????????# ??# #?????? | | ????????????????????????## ??# #?????? | | ???????????????????? ### #### ##????? | | ???????????????????? # #=*% ##???? | | ???????##??????????? &%& # # | | ??????? ?????????????????# & #??????? | | ??????? ???????????###??## # #??????? | | ???????# ??????????## ##??## ## ##??????? | | ???????# ??????????# #####; ## ###?#### | | ?????### ????????### #### ## # # # | | ?????# #???????## #?# | | ?????# #???????# ##?# | | ??????? ##????### ##?# # # | | ????????# ###### # @ ### #####??? | | ???????## ## # R ##?????? | | ???????# " ###### ## ####### | | ???????# #### "#?## ###### # # | | ???????# #??## #?? ##?## | | ???????# #???#####???# " ?# ## | | ??????##% #######??????????##"""" ## #### # | | ??????# %% # #???????????????# """ # ##??##### | | #######*%= ###??????????????# "" #???????? | | # # #!!! ##???????????????# ####???????? | | [ ##????????????????# ???????????? | | # #?????????????????## """ ????????????? | | ##### ####??????????????????## " " ????????????? | | ????## ##?????????????????????# ##"?????????????? | | ????# #?????????????????????##??# ?????????????? | | ????# ##?????????????????????????#??????????????? | | ???### ##????????????????????????????????????????? | | ???# ##??##???????????????????????????????????? | | ???## ### ##??????????????????????????????????? | | ????### #??????????????????????????????????? | | ??????## #??????????????????????????????????? | | ???????# #??????????????????????????????????? | | ???????# ##??????????????????????????????????? | | ???????#######???????????????????????????????????? | | ?????????????????????????????????????????????????? | +----------------------------------------------------+ Best States ------------- Heat Dissipation 25 Energy Generation 5 Energy Capacity 100 Matter Stores 300 Matter Capacity 300 Sight Range 16 Terrain Scan Density 10 Evasion (%) 50 Recoil Reduction 2 Item Schematics ----------------- None Robot Schematics ------------------ None Fabricated ------------ Nothing Alien Tech Used ----------------- None Achievements -------------- None Challenges ------------ None Game ------ Seed OpticalSmallWartreads Manual? 0 Play Time 00:09:35 Cumulative 670.4 hours Start 2024.08.10 @ 12:07:16 End 2024.08.10 @ 12:18:25 Sessions 1 Manual Loads 0 Difficulty Rogue Special Mode None Game No. 519 Rogue 519 Adventurer 0 Explorer 0 Win Type - Total 172 Types 97/9/49/6/3/2/4/1/1 Lore% 71 Gallery% 85 Achievement% 84 Wizard Run 0 Options --------- Layout 0 ASCII 1 Keyboard 0 Movement Vi Keybinds 0 Fullscreen 1 Font 24/Smallcaps Map View 76x50 Zoom Use 0% Tactical HUD 1 Map Filters NONE Filters NONE Steam X RUN: 9410b573-8206-4e92-88bf-1ee4f7e1d740